[Event "*** Titled Tuesday Blitz"]
[Site "Chess.com"]
[Date "2020.05.19"]
[Round "5"]
[White "aaronmaster123"]
[Black "FearNoEvil12"]
[Result "1-0"]
[WhiteElo "2248"]
[BlackElo "2028"]
[TimeControl "180+1"]
[EndTime "12:57:46 PDT"]
[Termination "aaronmaster123 won on time"]

1. Nf3 {[%clk 0:03:00.9]} 1... b5 {[%clk 0:02:58.6]} 2. b4 {[%clk 0:02:57.4]}
2... a6 {[%clk 0:02:58]} 3. Bb2 {[%clk 0:02:54.1]} 3... Bb7 {[%clk 0:02:58.4]}
4. c4 {[%clk 0:02:49]} 4... e6 {[%clk 0:02:55.7]} 5. c5 {[%clk 0:02:48.7]} 5...
Nc6 {[%clk 0:02:51.6]} 6. a3 {[%clk 0:02:47.2]} 6... Nf6 {[%clk 0:02:50.4]} 7.
d3 {[%clk 0:02:35.4]} 7... a5 {[%clk 0:02:49.1]} 8. Qb3 {[%clk 0:02:30]} 8...
axb4 {[%clk 0:02:46.1]} 9. axb4 {[%clk 0:02:30.9]} 9... Rxa1 {[%clk 0:02:44.6]}
10. Bxa1 {[%clk 0:02:31.8]} 10... Qa8 {[%clk 0:02:41.4]} 11. Bb2 {[%clk
0:02:30.3]} 11... d6 {[%clk 0:02:37.4]} 12. Na3 {[%clk 0:02:17]} 12... dxc5
{[%clk 0:02:34.1]} 13. Nxb5 {[%clk 0:02:16.6]} 13... Qb8 {[%clk 0:02:29.5]} 14.
bxc5 {[%clk 0:02:13.2]} 14... Bxc5 {[%clk 0:02:27.1]} 15. Bxf6 {[%clk
0:02:10.7]} 15... gxf6 {[%clk 0:02:25.9]} 16. d4 {[%clk 0:02:10.8]} 16... Bb4+
{[%clk 0:02:23.7]} 17. Nc3 {[%clk 0:02:01.9]} 17... Ba6 {[%clk 0:02:17.3]} 18.
e3 {[%clk 0:01:59.3]} 18... Bxc3+ {[%clk 0:02:13.8]} 19. Qxc3 {[%clk 0:01:59.7]}
19... Qb1+ {[%clk 0:02:13.2]} 20. Kd2 {[%clk 0:01:59.3]} 20... Bxf1 {[%clk
0:01:45.1]} 21. Qxc6+ {[%clk 0:01:56.7]} 21... Kf8 {[%clk 0:01:45.6]} 22. Qxc7
{[%clk 0:01:26.2]} 22... Kg7 {[%clk 0:01:43.8]} 23. Qg3+ {[%clk 0:01:24.5]}
23... Kf8 {[%clk 0:01:42.4]} 24. Rxf1 {[%clk 0:01:10.8]} 24... Qxf1 {[%clk
0:01:40.1]} 25. Ne1 {[%clk 0:00:54.1]} 25... Rg8 {[%clk 0:01:34]} 26. Qd6+
{[%clk 0:00:51]} 26... Kg7 {[%clk 0:01:33.7]} 27. Nd3 {[%clk 0:00:47.3]} 27...
Ra8 {[%clk 0:01:26]} 28. Qg3+ {[%clk 0:00:37.8]} 28... Kh8 {[%clk 0:01:24.4]}
29. Qf3 {[%clk 0:00:23.7]} 29... Ra2+ {[%clk 0:01:19.8]} 30. Kc3 {[%clk
0:00:21.5]} 30... Qa1+ {[%clk 0:01:14.2]} 31. Kb3 {[%clk 0:00:18.7]} 31... Qb1+
{[%clk 0:01:12.1]} 32. Kc4 {[%clk 0:00:18.1]} 32... Qc2+ {[%clk 0:01:03.6]} 33.
Kb5 {[%clk 0:00:12.5]} 33... Qxd3+ {[%clk 0:01:02.6]} 34. Kc6 {[%clk 0:00:12.5]}
34... Rc2+ {[%clk 0:00:54.2]} 35. Kd7 {[%clk 0:00:12.6]} 35... Qf5 {[%clk
0:00:48.9]} 36. Qa8+ {[%clk 0:00:06.9]} 36... Kg7 {[%clk 0:00:47.7]} 37. Ke7
{[%clk 0:00:06.2]} 37... Rc7+ {[%clk 0:00:22]} 38. Kd6 {[%clk 0:00:06.4]} 38...
Qc2 {[%clk 0:00:17.9]} 39. Qf3 {[%clk 0:00:04.2]} 39... Rc6+ {[%clk 0:00:14.2]}
40. Qxc6 {[%clk 0:00:03.3]} 40... Qxf2 {[%clk 0:00:13.7]} 41. Qf3 {[%clk
0:00:03.1]} 41... Qxf3 {[%clk 0:00:13.2]} 42. gxf3 {[%clk 0:00:04]} 42... Kg6
{[%clk 0:00:13.1]} 43. Ke7 {[%clk 0:00:03.7]} 43... f5 {[%clk 0:00:11.9]} 44. e4
{[%clk 0:00:03.6]} 44... fxe4 {[%clk 0:00:09.7]} 45. fxe4 {[%clk 0:00:04.5]}
45... f5 {[%clk 0:00:09.4]} 46. exf5+ {[%clk 0:00:04.5]} 46... exf5 {[%clk
0:00:09.9]} 47. d5 {[%clk 0:00:05.4]} 47... f4 {[%clk 0:00:10.3]} 48. d6 {[%clk
0:00:06.3]} 48... f3 {[%clk 0:00:10.3]} 49. d7 {[%clk 0:00:07.2]} 49... f2
{[%clk 0:00:10.4]} 50. d8=Q {[%clk 0:00:08.1]} 50... f1=Q {[%clk 0:00:10]} 51.
Qg8+ {[%clk 0:00:07.8]} 51... Kh6 {[%clk 0:00:08.5]} 52. Qe6+ {[%clk 0:00:07.8]}
52... Kh5 {[%clk 0:00:07.2]} 53. Qe5+ {[%clk 0:00:07.7]} 53... Kg6 {[%clk
0:00:03.7]} 54. Qe4+ {[%clk 0:00:06.6]} 1-0

[Event "*** Titled Tuesday Blitz"]
[Site "Chess.com"]
[Date "2020.05.19"]
[Round "5"]
[White "JustinWang1234"]
[Black "LiemLe"]
[Result "0-1"]
[WhiteElo "2570"]
[BlackElo "2953"]
[TimeControl "180+1"]
[EndTime "12:57:47 PDT"]
[Termination "LiemLe won by resignation"]

1. Nf3 {[%clk 0:03:00.9]} 1... Nf6 {[%clk 0:02:58.1]} 2. c4 {[%clk 0:03:00.2]}
2... b6 {[%clk 0:02:56.8]} 3. g3 {[%clk 0:03:00]} 3... Bb7 {[%clk 0:02:55.8]} 4.
Bg2 {[%clk 0:03:00.2]} 4... c5 {[%clk 0:02:54.4]} 5. O-O {[%clk 0:02:59.9]} 5...
g6 {[%clk 0:02:53.6]} 6. Nc3 {[%clk 0:02:47.2]} 6... Bg7 {[%clk 0:02:53]} 7. d4
{[%clk 0:02:46.7]} 7... cxd4 {[%clk 0:02:53.9]} 8. Qxd4 {[%clk 0:02:47]} 8...
Nc6 {[%clk 0:02:52]} 9. Qf4 {[%clk 0:02:37.9]} 9... Qb8 {[%clk 0:02:51.9]} 10.
Rd1 {[%clk 0:02:35.3]} 10... Qxf4 {[%clk 0:02:51.2]} 11. Bxf4 {[%clk 0:02:36.2]}
11... Nd8 {[%clk 0:02:50.8]} 12. Rac1 {[%clk 0:02:28.7]} 12... Ne6 {[%clk
0:02:50.7]} 13. Bd2 {[%clk 0:02:28.9]} 13... O-O {[%clk 0:02:42.2]} 14. b3
{[%clk 0:02:23]} 14... Rfc8 {[%clk 0:02:41.2]} 15. Ng5 {[%clk 0:01:58.6]} 15...
Bxg2 {[%clk 0:02:39.5]} 16. Kxg2 {[%clk 0:01:59.5]} 16... d6 {[%clk 0:02:29.1]}
17. Nxe6 {[%clk 0:01:16.5]} 17... fxe6 {[%clk 0:02:30]} 18. e4 {[%clk
0:01:15.1]} 18... Nd7 {[%clk 0:02:27.1]} 19. f3 {[%clk 0:01:14]} 19... a6 {[%clk
0:02:26.4]} 20. Ne2 {[%clk 0:00:47.7]} 20... b5 {[%clk 0:02:10.7]} 21. cxb5
{[%clk 0:00:39.6]} 21... Rxc1 {[%clk 0:02:08.8]} 22. Rxc1 {[%clk 0:00:40.5]}
22... axb5 {[%clk 0:02:09]} 23. Rc2 {[%clk 0:00:38.2]} 23... Kf7 {[%clk
0:02:09]} 24. Kf2 {[%clk 0:00:36.2]} 24... Ke8 {[%clk 0:01:51.6]} 25. Ke1 {[%clk
0:00:20.5]} 25... Ne5 {[%clk 0:01:48]} 26. Kf2 {[%clk 0:00:19.6]} 26... Kd7
{[%clk 0:01:47.7]} 27. f4 {[%clk 0:00:17.1]} 27... Nc6 {[%clk 0:01:40.3]} 28.
Ke3 {[%clk 0:00:17.3]} 28... e5 {[%clk 0:01:37.7]} 29. Bc3 {[%clk 0:00:16.2]}
29... Rc8 {[%clk 0:01:19.8]} 30. Bb2 {[%clk 0:00:13.4]} 30... exf4+ {[%clk
0:01:12.7]} 31. gxf4 {[%clk 0:00:14.3]} 31... Bxb2 {[%clk 0:01:10.6]} 32. Rxb2
{[%clk 0:00:15.2]} 32... h6 {[%clk 0:00:54.1]} 33. h4 {[%clk 0:00:12.7]} 33...
e5 {[%clk 0:00:51.1]} 34. fxe5 {[%clk 0:00:09.5]} 34... Nxe5 {[%clk 0:00:52]}
35. Rd2 {[%clk 0:00:07.8]} 35... g5 {[%clk 0:00:45.5]} 36. hxg5 {[%clk
0:00:07.6]} 36... hxg5 {[%clk 0:00:46.4]} 37. Ng3 {[%clk 0:00:08]} 37... Rc3+
{[%clk 0:00:45.7]} 38. Kf2 {[%clk 0:00:08.4]} 38... Ng4+ {[%clk 0:00:42.2]} 39.
Kg2 {[%clk 0:00:08.6]} 39... Ne3+ {[%clk 0:00:36.2]} 40. Kf2 {[%clk 0:00:08.6]}
40... Ng4+ {[%clk 0:00:28.7]} 41. Kg2 {[%clk 0:00:09]} 41... Nf6 {[%clk
0:00:29.5]} 42. Re2 {[%clk 0:00:08]} 42... Ke6 {[%clk 0:00:29.2]} 43. Nf5 {[%clk
0:00:07.5]} 43... Ke5 {[%clk 0:00:25.6]} 44. Ng3 {[%clk 0:00:07.9]} 44... g4
{[%clk 0:00:22.4]} 45. Nf1 {[%clk 0:00:06.4]} 45... Nxe4 {[%clk 0:00:18.9]} 46.
Nd2 {[%clk 0:00:06.9]} 46... d5 {[%clk 0:00:18.9]} 47. Nxe4 {[%clk 0:00:07.1]}
47... dxe4 {[%clk 0:00:19.8]} 48. Rd2 {[%clk 0:00:07.7]} 48... Kf4 {[%clk
0:00:19.4]} 49. Rd8 {[%clk 0:00:08.1]} 49... Rc2+ {[%clk 0:00:19.5]} 50. Kf1
{[%clk 0:00:08.6]} 50... Rxa2 {[%clk 0:00:19.7]} 51. Rf8+ {[%clk 0:00:08.8]}
51... Ke3 {[%clk 0:00:19.9]} 52. Rb8 {[%clk 0:00:06.6]} 52... Kf3 {[%clk
0:00:19.9]} 53. Rf8+ {[%clk 0:00:06.5]} 53... Kg3 {[%clk 0:00:19.2]} 54. Re8
{[%clk 0:00:06.5]} 54... Rb2 {[%clk 0:00:18.5]} 55. Rxe4 {[%clk 0:00:05.6]}
55... Rb1+ {[%clk 0:00:18.9]} 56. Ke2 {[%clk 0:00:05.5]} 56... Rxb3 {[%clk
0:00:19.8]} 57. Re8 {[%clk 0:00:05.4]} 57... Kg2 {[%clk 0:00:19.8]} 58. Rg8
{[%clk 0:00:04.3]} 58... g3 {[%clk 0:00:20.1]} 0-1

[Event "*** Titled Tuesday Blitz"]
[Site "Chess.com"]
[Date "2020.05.19"]
[Round "5"]
[White "ChessBitl"]
[Black "Mr_Sinigami"]
[Result "1-0"]
[WhiteElo "2349"]
[BlackElo "2580"]
[TimeControl "180+1"]
[EndTime "12:57:47 PDT"]
[Termination "ChessBitl won by resignation"]

1. e4 {[%clk 0:03:00.6]} 1... c5 {[%clk 0:03:00]} 2. Nf3 {[%clk 0:03:00.5]} 2...
Nc6 {[%clk 0:03:00.2]} 3. d4 {[%clk 0:03:00.9]} 3... cxd4 {[%clk 0:03:01.1]} 4.
Nxd4 {[%clk 0:03:01.5]} 4... Nf6 {[%clk 0:03:01.4]} 5. Nc3 {[%clk 0:03:02.1]}
5... e5 {[%clk 0:03:00.9]} 6. Ndb5 {[%clk 0:03:02.3]} 6... d6 {[%clk 0:03:00.9]}
7. Nd5 {[%clk 0:03:02.5]} 7... Nxd5 {[%clk 0:03:00.5]} 8. exd5 {[%clk
0:03:03.1]} 8... Ne7 {[%clk 0:03:00.9]} 9. c4 {[%clk 0:03:03.1]} 9... Ng6 {[%clk
0:03:01.1]} 10. Bd3 {[%clk 0:03:02]} 10... a6 {[%clk 0:02:59.7]} 11. Nc3 {[%clk
0:02:55.6]} 11... Be7 {[%clk 0:02:59.6]} 12. O-O {[%clk 0:02:55.5]} 12... O-O
{[%clk 0:02:59.6]} 13. Be3 {[%clk 0:02:55.1]} 13... f5 {[%clk 0:02:52.6]} 14. f3
{[%clk 0:02:53.6]} 14... Bg5 {[%clk 0:02:50.7]} 15. Bf2 {[%clk 0:02:53.3]} 15...
Nf4 {[%clk 0:02:42.2]} 16. Bc2 {[%clk 0:02:52.2]} 16... Rf6 {[%clk 0:02:40.8]}
17. c5 {[%clk 0:02:44.8]} 17... Rh6 {[%clk 0:02:40.9]} 18. Bg3 {[%clk
0:02:31.2]} 18... Qe8 {[%clk 0:02:33.5]} 19. cxd6 {[%clk 0:02:29.1]} 19... Qh5
{[%clk 0:02:25.7]} 20. Qe1 {[%clk 0:02:15]} 20... Bd7 {[%clk 0:02:04.8]} 21.
Qxe5 {[%clk 0:02:02.8]} 21... Re8 {[%clk 0:02:04.6]} 22. Qd4 {[%clk 0:02:03]}
22... Nxg2 {[%clk 0:01:06.2]} 23. Kxg2 {[%clk 0:01:42.2]} 23... Qh3+ {[%clk
0:01:04.6]} 24. Kf2 {[%clk 0:01:27.4]} 24... Be3+ {[%clk 0:00:59.4]} 25. Qxe3
{[%clk 0:01:26.9]} 25... Rxe3 {[%clk 0:00:59.8]} 26. Kxe3 {[%clk 0:01:27.5]}
26... Rf6 {[%clk 0:00:47.6]} 27. f4 {[%clk 0:01:23.7]} 27... Rxd6 {[%clk
0:00:41.8]} 28. Rae1 {[%clk 0:01:17]} 28... h5 {[%clk 0:00:33.9]} 29. Kd2 {[%clk
0:01:00.6]} 29... h4 {[%clk 0:00:32.6]} 30. Bf2 {[%clk 0:01:00.8]} 30... Qxh2
{[%clk 0:00:20.3]} 31. Kc1 {[%clk 0:01:00.7]} 31... Qxf4+ {[%clk 0:00:16.3]} 32.
Kb1 {[%clk 0:00:59.2]} 32... Qg5 {[%clk 0:00:08.8]} 33. Bd4 {[%clk 0:00:53.5]}
33... Rg6 {[%clk 0:00:08.6]} 34. Rg1 {[%clk 0:00:50.4]} 34... Qh5 {[%clk
0:00:08.5]} 35. Rxg6 {[%clk 0:00:50.1]} 35... Qxg6 {[%clk 0:00:09.4]} 36. Rg1
{[%clk 0:00:50.6]} 36... Qh6 {[%clk 0:00:06]} 37. Bxg7 {[%clk 0:00:41.3]} 37...
Qxg7 {[%clk 0:00:06.9]} 38. Rxg7+ {[%clk 0:00:40.7]} 38... Kxg7 {[%clk
0:00:07.8]} 39. Kc1 {[%clk 0:00:37.3]} 39... h3 {[%clk 0:00:07.4]} 40. Bd1
{[%clk 0:00:37.3]} 40... Kf6 {[%clk 0:00:04.7]} 41. Kd2 {[%clk 0:00:37.6]} 41...
Ke5 {[%clk 0:00:04.3]} 42. Ke3 {[%clk 0:00:38]} 42... f4+ {[%clk 0:00:04.7]} 43.
Kf2 {[%clk 0:00:37.8]} 43... b5 {[%clk 0:00:03.6]} 44. a3 {[%clk 0:00:35.5]}
44... a5 {[%clk 0:00:03.5]} 45. Bf3 {[%clk 0:00:33.5]} 45... b4 {[%clk
0:00:03.7]} 46. axb4 {[%clk 0:00:32.2]} 46... axb4 {[%clk 0:00:04.6]} 47. Na2
{[%clk 0:00:32.7]} 47... b3 {[%clk 0:00:04.3]} 48. Nc1 {[%clk 0:00:32.9]} 48...
Ba4 {[%clk 0:00:04]} 49. Nd3+ {[%clk 0:00:33.8]} 49... Kf5 {[%clk 0:00:03.1]}
50. Nc5 {[%clk 0:00:33.6]} 50... Bd7 {[%clk 0:00:02.3]} 51. Nxd7 {[%clk
0:00:32.8]} 51... h2 {[%clk 0:00:02]} 52. Nc5 {[%clk 0:00:31.5]} 1-0

[Event "*** Titled Tuesday Blitz"]
[Site "Chess.com"]
[Date "2020.05.19"]
[Round "5"]
[White "Borsuk_Konstantin"]
[Black "colonelcassad"]
[Result "1-0"]
[WhiteElo "2629"]
[BlackElo "2426"]
[TimeControl "180+1"]
[EndTime "12:57:48 PDT"]
[Termination "Borsuk_Konstantin won by checkmate"]

1. d4 {[%clk 0:03:00.9]} 1... d5 {[%clk 0:02:59.6]} 2. c4 {[%clk 0:03:01]} 2...
c6 {[%clk 0:03:00.2]} 3. Nc3 {[%clk 0:03:00.1]} 3... e6 {[%clk 0:03:00.7]} 4. e3
{[%clk 0:02:59.1]} 4... f5 {[%clk 0:03:00.6]} 5. Qc2 {[%clk 0:02:57.8]} 5... Nf6
{[%clk 0:02:58.9]} 6. f3 {[%clk 0:02:57.4]} 6... Nbd7 {[%clk 0:02:50.9]} 7. Bd2
{[%clk 0:02:57]} 7... Bd6 {[%clk 0:02:46.5]} 8. O-O-O {[%clk 0:02:52.6]} 8...
O-O {[%clk 0:02:22.1]} 9. Kb1 {[%clk 0:02:51.7]} 9... c5 {[%clk 0:02:15]} 10.
Nh3 {[%clk 0:02:29.2]} 10... Nb6 {[%clk 0:02:07.7]} 11. dxc5 {[%clk 0:02:11.6]}
11... Bxc5 {[%clk 0:02:07.1]} 12. cxd5 {[%clk 0:02:07.2]} 12... exd5 {[%clk
0:01:59.1]} 13. Nb5 {[%clk 0:01:51.8]} 13... Qe7 {[%clk 0:01:49.9]} 14. Nd4
{[%clk 0:01:35.4]} 14... Bd7 {[%clk 0:01:21.8]} 15. Rc1 {[%clk 0:01:13.5]} 15...
Rac8 {[%clk 0:01:19.5]} 16. Qd1 {[%clk 0:01:13.9]} 16... Qe5 {[%clk 0:01:05.8]}
17. Nf4 {[%clk 0:00:52.3]} 17... Ba4 {[%clk 0:00:58]} 18. b3 {[%clk 0:00:36.2]}
18... Bxd4 {[%clk 0:00:50.1]} 19. Nd3 {[%clk 0:00:19.7]} 19... Qe7 {[%clk
0:00:39]} 20. exd4 {[%clk 0:00:17.5]} 20... Rxc1+ {[%clk 0:00:34.2]} 21. Bxc1
{[%clk 0:00:17]} 21... Bc6 {[%clk 0:00:20.4]} 22. Ne5 {[%clk 0:00:13.2]} 22...
Qb4 {[%clk 0:00:20.3]} 23. Qd2 {[%clk 0:00:11.9]} 23... a5 {[%clk 0:00:19.7]}
24. Qxb4 {[%clk 0:00:11.5]} 24... axb4 {[%clk 0:00:20.2]} 25. Bd2 {[%clk
0:00:11.9]} 25... Re8 {[%clk 0:00:20.4]} 26. Bxb4 {[%clk 0:00:11.8]} 26... Nbd7
{[%clk 0:00:20.7]} 27. f4 {[%clk 0:00:11.9]} 27... Ne4 {[%clk 0:00:20.7]} 28.
Be2 {[%clk 0:00:11.2]} 28... Ndf6 {[%clk 0:00:20.8]} 29. Rc1 {[%clk 0:00:09.8]}
29... Re6 {[%clk 0:00:21]} 30. Kb2 {[%clk 0:00:09.3]} 30... h6 {[%clk
0:00:19.4]} 31. a4 {[%clk 0:00:08.6]} 31... g5 {[%clk 0:00:19.6]} 32. g3 {[%clk
0:00:08.2]} 32... g4 {[%clk 0:00:18.5]} 33. a5 {[%clk 0:00:06.8]} 33... Be8
{[%clk 0:00:15.9]} 34. Rc7 {[%clk 0:00:05.7]} 34... Nd6 {[%clk 0:00:13.9]} 35.
Bd3 {[%clk 0:00:03.9]} 35... h5 {[%clk 0:00:12.7]} 36. Bxd6 {[%clk 0:00:03]}
36... Rxd6 {[%clk 0:00:12.6]} 37. Bxf5 {[%clk 0:00:03.8]} 37... Ra6 {[%clk
0:00:12.1]} 38. b4 {[%clk 0:00:03.9]} 38... Rb6 {[%clk 0:00:11.9]} 39. axb6
{[%clk 0:00:03.3]} 39... Bb5 {[%clk 0:00:11.4]} 40. Rxb7 {[%clk 0:00:03.2]}
40... Ba6 {[%clk 0:00:11.6]} 41. Rb8+ {[%clk 0:00:03.4]} 41... Kg7 {[%clk
0:00:11.5]} 42. b7 {[%clk 0:00:03.9]} 42... Bxb7 {[%clk 0:00:11.7]} 43. Rxb7+
{[%clk 0:00:03.5]} 43... Kh6 {[%clk 0:00:12.3]} 44. Rb6 {[%clk 0:00:03.5]} 44...
Kg7 {[%clk 0:00:12.3]} 45. Rxf6 {[%clk 0:00:04.1]} 45... Kxf6 {[%clk 0:00:11.8]}
46. Bd3 {[%clk 0:00:05]} 46... Kg7 {[%clk 0:00:12.1]} 47. b5 {[%clk 0:00:05.4]}
47... Kf6 {[%clk 0:00:12.8]} 48. Kb3 {[%clk 0:00:06.2]} 48... Ke7 {[%clk
0:00:12.9]} 49. Kb4 {[%clk 0:00:07.1]} 49... Kd6 {[%clk 0:00:13.6]} 50. Ka5
{[%clk 0:00:07.3]} 50... Kc7 {[%clk 0:00:14.4]} 51. b6+ {[%clk 0:00:07.5]} 51...
Kb8 {[%clk 0:00:15.1]} 52. Ba6 {[%clk 0:00:07.4]} 52... Ka8 {[%clk 0:00:15.9]}
53. Nc6 {[%clk 0:00:07.1]} 53... h4 {[%clk 0:00:14.9]} 54. b7# {[%clk
0:00:07.6]} 1-0

[Event "*** Titled Tuesday Blitz"]
[Site "Chess.com"]
[Date "2020.05.19"]
[Round "5"]
[White "marianokar"]
[Black "StegariuVlad"]
[Result "0-1"]
[WhiteElo "2412"]
[BlackElo "2579"]
[TimeControl "180+1"]
[EndTime "12:57:48 PDT"]
[Termination "StegariuVlad won by resignation"]

1. e4 {[%clk 0:03:00.9]} 1... e5 {[%clk 0:02:58.1]} 2. Nf3 {[%clk 0:03:00.4]}
2... Nc6 {[%clk 0:02:57.8]} 3. Bb5 {[%clk 0:02:59.4]} 3... a6 {[%clk 0:02:57.3]}
4. Ba4 {[%clk 0:02:59]} 4... Nf6 {[%clk 0:02:56.7]} 5. O-O {[%clk 0:02:59.4]}
5... Be7 {[%clk 0:02:55.5]} 6. Re1 {[%clk 0:02:58.8]} 6... b5 {[%clk 0:02:54.8]}
7. Bb3 {[%clk 0:02:59.3]} 7... d6 {[%clk 0:02:53.8]} 8. c3 {[%clk 0:02:58.2]}
8... O-O {[%clk 0:02:53.7]} 9. h3 {[%clk 0:02:58.2]} 9... Na5 {[%clk 0:02:49.8]}
10. Bc2 {[%clk 0:02:57.7]} 10... c5 {[%clk 0:02:49.6]} 11. d4 {[%clk 0:02:57.7]}
11... cxd4 {[%clk 0:02:48.5]} 12. cxd4 {[%clk 0:02:57.9]} 12... Bb7 {[%clk
0:02:48.2]} 13. d5 {[%clk 0:02:56.6]} 13... Nc4 {[%clk 0:02:45]} 14. b3 {[%clk
0:02:50.1]} 14... Nb6 {[%clk 0:02:44.7]} 15. Nbd2 {[%clk 0:02:46.3]} 15... Rc8
{[%clk 0:02:44.1]} 16. Nf1 {[%clk 0:02:46.5]} 16... Nfd7 {[%clk 0:02:39.5]} 17.
Ne3 {[%clk 0:02:38.2]} 17... g6 {[%clk 0:02:38.6]} 18. Bd2 {[%clk 0:02:36.4]}
18... Qc7 {[%clk 0:02:37.6]} 19. Rc1 {[%clk 0:02:27]} 19... Qb8 {[%clk
0:02:37.1]} 20. g4 {[%clk 0:01:56.9]} 20... Nc5 {[%clk 0:02:25.8]} 21. Kh2
{[%clk 0:01:53.2]} 21... Nbd7 {[%clk 0:02:19.6]} 22. Rg1 {[%clk 0:01:51.7]}
22... Nf6 {[%clk 0:02:19.4]} 23. Nf5 {[%clk 0:01:25]} 23... gxf5 {[%clk
0:02:11.3]} 24. gxf5+ {[%clk 0:01:25.9]} 24... Kh8 {[%clk 0:02:10.7]} 25. Ng5
{[%clk 0:01:26.8]} 25... Ncxe4 {[%clk 0:01:53.4]} 26. Bxe4 {[%clk 0:01:15.3]}
26... Rxc1 {[%clk 0:01:47.1]} 27. Bxc1 {[%clk 0:01:13.1]} 27... Qe8 {[%clk
0:01:31.3]} 28. Nxh7 {[%clk 0:00:44.1]} 28... Nxh7 {[%clk 0:01:11.2]} 29. f6
{[%clk 0:00:44.1]} 29... Nxf6 {[%clk 0:01:05.7]} 30. Qd2 {[%clk 0:00:37.5]}
30... Ng8 {[%clk 0:00:58.3]} 31. Bf5 {[%clk 0:00:13.6]} 31... Bc8 {[%clk
0:00:48.9]} 32. Qd3 {[%clk 0:00:08]} 32... f6 {[%clk 0:00:37.8]} 33. Qe4 {[%clk
0:00:05.3]} 33... Bxf5 {[%clk 0:00:33.8]} 34. Qxf5 {[%clk 0:00:05.2]} 34... Qf7
{[%clk 0:00:33.7]} 35. Rg4 {[%clk 0:00:04.6]} 35... Qh7 {[%clk 0:00:32.4]} 36.
Qf3 {[%clk 0:00:02.8]} 36... f5 {[%clk 0:00:31.8]} 37. Rg1 {[%clk 0:00:02.9]}
37... e4 {[%clk 0:00:30.8]} 38. Qg3 {[%clk 0:00:02.4]} 38... Bf6 {[%clk
0:00:30.5]} 39. Bf4 {[%clk 0:00:01.8]} 39... Rf7 {[%clk 0:00:26.6]} 40. Bxd6
{[%clk 0:00:02.7]} 40... Rg7 {[%clk 0:00:26.7]} 41. Qf4 {[%clk 0:00:01.7]} 41...
Rxg1 {[%clk 0:00:26.1]} 42. Kxg1 {[%clk 0:00:02.6]} 42... Qg6+ {[%clk
0:00:22.1]} 43. Kf1 {[%clk 0:00:02.2]} 43... Nh6 {[%clk 0:00:20.8]} 44. Be5
{[%clk 0:00:03.1]} 44... Nf7 {[%clk 0:00:20.4]} 45. Bxf6+ {[%clk 0:00:02.8]}
45... Qxf6 {[%clk 0:00:20.8]} 46. h4 {[%clk 0:00:03.2]} 46... Kg7 {[%clk
0:00:20.8]} 47. h5 {[%clk 0:00:03.4]} 47... Nd6 {[%clk 0:00:20.8]} 48. f3 {[%clk
0:00:03.8]} 48... exf3 {[%clk 0:00:20.6]} 49. Kf2 {[%clk 0:00:04.7]} 49... Ne4+
{[%clk 0:00:20]} 50. Kxf3 {[%clk 0:00:05.6]} 50... Qc3+ {[%clk 0:00:19.9]} 51.
Kg2 {[%clk 0:00:05.6]} 51... Qd2+ {[%clk 0:00:18.5]} 52. Kh3 {[%clk 0:00:05]}
52... Qxf4 {[%clk 0:00:17.7]} 0-1

[Event "*** Titled Tuesday Blitz"]
[Site "Chess.com"]
[Date "2020.05.19"]
[Round "5"]
[White "Nikolaj_6"]
[Black "killer311"]
[Result "1-0"]
[WhiteElo "2571"]
[BlackElo "2405"]
[TimeControl "180+1"]
[EndTime "12:57:48 PDT"]
[Termination "Nikolaj_6 won by resignation"]

1. e4 {[%clk 0:03:00.9]} 1... c6 {[%clk 0:02:59.4]} 2. d4 {[%clk 0:03:00.4]}
2... d5 {[%clk 0:03:00.3]} 3. e5 {[%clk 0:03:00.6]} 3... Bf5 {[%clk 0:02:59.7]}
4. h4 {[%clk 0:03:00.1]} 4... h5 {[%clk 0:02:59.1]} 5. c4 {[%clk 0:02:58.7]}
5... e6 {[%clk 0:02:58.5]} 6. Nc3 {[%clk 0:02:58.6]} 6... Ne7 {[%clk 0:02:56.9]}
7. Nge2 {[%clk 0:02:57.6]} 7... dxc4 {[%clk 0:02:54.9]} 8. Ng3 {[%clk
0:02:56.9]} 8... Bg6 {[%clk 0:02:51.9]} 9. Bxc4 {[%clk 0:02:55.1]} 9... Nd7
{[%clk 0:02:50.6]} 10. Bg5 {[%clk 0:02:50.4]} 10... Nb6 {[%clk 0:02:49.5]} 11.
Bb3 {[%clk 0:02:47.4]} 11... Qd7 {[%clk 0:02:49]} 12. Nce4 {[%clk 0:02:41.7]}
12... Nf5 {[%clk 0:02:41.4]} 13. Nxf5 {[%clk 0:02:34.8]} 13... Bxf5 {[%clk
0:02:42.3]} 14. Ng3 {[%clk 0:02:25.8]} 14... Bb4+ {[%clk 0:02:29.4]} 15. Kf1
{[%clk 0:02:19.4]} 15... Bg6 {[%clk 0:02:29.2]} 16. a3 {[%clk 0:02:15.8]} 16...
Be7 {[%clk 0:02:27.7]} 17. Qd2 {[%clk 0:02:11.3]} 17... Bxg5 {[%clk 0:02:22.6]}
18. hxg5 {[%clk 0:02:11.1]} 18... O-O-O {[%clk 0:02:14.5]} 19. Ne2 {[%clk
0:02:07.7]} 19... h4 {[%clk 0:01:57.5]} 20. Rc1 {[%clk 0:02:03.9]} 20... Bf5
{[%clk 0:01:55.3]} 21. Qe3 {[%clk 0:01:55.4]} 21... Kb8 {[%clk 0:01:47.3]} 22.
Rc5 {[%clk 0:01:44.5]} 22... Bg4 {[%clk 0:01:41.5]} 23. f3 {[%clk 0:01:43.2]}
23... Bf5 {[%clk 0:01:41.5]} 24. Kf2 {[%clk 0:01:43.3]} 24... Rh5 {[%clk
0:01:36.4]} 25. Rhc1 {[%clk 0:01:41.8]} 25... Qe7 {[%clk 0:01:31.2]} 26. f4
{[%clk 0:01:35.2]} 26... Bg4 {[%clk 0:01:24.7]} 27. Nc3 {[%clk 0:01:30.9]} 27...
Qd7 {[%clk 0:01:22.1]} 28. Bd1 {[%clk 0:01:23.5]} 28... Bxd1 {[%clk 0:01:16.4]}
29. Rxd1 {[%clk 0:01:23.4]} 29... Rdh8 {[%clk 0:01:03.4]} 30. Kg1 {[%clk
0:01:17]} 30... h3 {[%clk 0:01:03.4]} 31. g3 {[%clk 0:01:17.3]} 31... h2+ {[%clk
0:01:03.5]} 32. Kh1 {[%clk 0:01:17.5]} 32... Rh3 {[%clk 0:01:03.7]} 33. Qf3
{[%clk 0:01:16.9]} 33... Qe7 {[%clk 0:00:59.6]} 34. Ne2 {[%clk 0:01:08.9]} 34...
f6 {[%clk 0:00:57.4]} 35. exf6 {[%clk 0:00:53]} 35... gxf6 {[%clk 0:00:58.3]}
36. gxf6 {[%clk 0:00:47.2]} 36... Qxf6 {[%clk 0:00:59.2]} 37. Rg5 {[%clk
0:00:44.6]} 37... Rf8 {[%clk 0:00:57.4]} 38. Qg4 {[%clk 0:00:41]} 38... Rh6
{[%clk 0:00:53.9]} 39. Nc3 {[%clk 0:00:38.1]} 39... Nd5 {[%clk 0:00:53]} 40.
Nxd5 {[%clk 0:00:37]} 40... cxd5 {[%clk 0:00:53.3]} 41. Re5 {[%clk 0:00:33.3]}
41... Rc8 {[%clk 0:00:50.1]} 42. Rde1 {[%clk 0:00:31.9]} 42... Rc2 {[%clk
0:00:43.1]} 43. f5 {[%clk 0:00:21.9]} 43... exf5 {[%clk 0:00:39.9]} 44. Qf4
{[%clk 0:00:21.8]} 44... Kc8 {[%clk 0:00:36.4]} 45. Re8+ {[%clk 0:00:21.4]}
45... Kd7 {[%clk 0:00:36.8]} 46. R1e7+ {[%clk 0:00:18.6]} 46... Kc6 {[%clk
0:00:28.7]} 47. Rc7+ {[%clk 0:00:13.7]} 47... Kb5 {[%clk 0:00:28]} 48. Rxc2
{[%clk 0:00:14.2]} 48... Qf7 {[%clk 0:00:20.2]} 49. Re5 {[%clk 0:00:14.2]} 49...
Qd7 {[%clk 0:00:19.8]} 50. Qxf5 {[%clk 0:00:13.8]} 50... Qc6 {[%clk 0:00:19]}
51. Rxd5+ {[%clk 0:00:13.6]} 51... Kb6 {[%clk 0:00:18]} 52. Rxc6+ {[%clk
0:00:13.6]} 1-0